Cogmind - Beta 16 @@@ ROGUE MODE // 2025.11.20 @ 18:47:11 Player: MolePlayingNice Result: Destroyed by G-34 Mercenary with Small Laser Performance ------------- Evolutions (0) 0 Regions Visited (1) 200 Robots Destroyed (4) 20 Value Destroyed (70) 70 Prototype IDs (0) 0 Alien Tech Used (0) 0 Bonus (0) 0 TOTAL SCORE: 290 Bonus ------- None Cogmind --------- Core Integrity 0/250 Matter 265/300 Energy 135/250 System Corruption 0% Temperature Cool (72) Movement Treading (160) Location -10/Materials Parts ------- > --- POWER (1) -------- Ion Engine > --- PROPULSION (2) --- Light Treads Light Treads > --- UTILITY (2) ------ Small Storage Unit > --- WEAPON (2) ------- Small Laser Light Assault Rifle > --- INVENTORY (8) ---- Aluminum Leg Wheel Compact Wheel Huge Storage Unit Small Laser Datajack Peak State ------------ > --- POWER ------------ Ion Engine > --- PROPULSION ------- Aluminum Leg Aluminum Leg > --- UTILITY ---------- Small Storage Unit > --- WEAPON ----------- Small Laser Light Assault Rifle > --- INVENTORY -------- Ion Engine Light Treads Light Treads Wheel Compact Wheel Small Laser [Rating: 6] Favorites ----------- Power Ion Engine Engine Ion Engine Propulsion Aluminum Leg Treads Light Treads Leg Aluminum Leg Utility Small Storage Unit Storage Small Storage Unit Weapon Small Laser Energy Gun Small Laser Ballistic Gun Light Assault Rifle Build | -11 -10 ------- Run | Yrd Mat Slots Evolved . | . . Power . | . . Propulsion . | . . Utility . | . . Weapon . | . . Parts Attached 3 | . 3 Power 1 | . 1 Engine 1 | . 1 Core . | . . Reactor . | . . Propulsion 2 | . 2 Treads 2 | . 2 Leg . | . . Wheel . | . . Hover . | . . Flight . | . . Utility . | . . Device . | . . Storage . | . . Processor . | . . Hackware . | . . Protection . | . . Artifact . | . . Weapon . | . . Energy Gun . | . . Energy Cannon . | . . Ballistic Gun . | . . Ballistic Cannon . | . . Launcher . | . . Special Weapon . | . . Impact Weapon . | . . Slashing Weapon . | . . Piercing Weapon . | . . Special Melee Weapon . | . . Unidentified Prototypes . | . . Parts Lost 2 | . 2 Power 1 | . 1 Propulsion 1 | . 1 Utility . | . . Weapon . | . . Highest Loss Streak 2 | . 2 To Critical Strikes . | . . Average Backups 6 | 6 6 Power . | 1 . Propulsion 3 | 4 3 Utility . | . . Weapon 1 | 1 1 Tool/Special . | . . Unused Backups 2 | . 2 Power . | . . Propulsion . | . . Utility 1 | . 1 Weapon . | . . Tool/Special 1 | . 1 Average Slot Usage (%) 85 | . 85 Engine 14 | . 14 Treads 2 | . 2 Leg 25 | . 25 Storage 14 | . 14 Energy Gun 14 | . 14 Ballistic Gun 14 | . 14 Peak Build Rating 6 | 6 6 Average Rating 5 | 6 5 On Entrance 6 | 6 6 Avg Prop Armor Cover (%) . | . . Naked Turns . | . . Heaviest Build 12 | 12 12 Greatest Support 20 | 20 20 Greatest Overweight (x) . | . . Average Overweight (x) . | . . Largest Inventory Capacity 8 | 8 8 Average Capacity 8 | 8 8 Most Carried 8 | 6 8 Average Carried 6 | 6 6 Final Capacity 8 | 8 8 Final Carried 6 | 6 6 Class Distribution -------------------- 100% | Mutant Dominant Class ---------------- Mutant | -10/Materials Resources | -11 -10 ----------- Run | Yrd Mat Matter Collected 208 | 200 8 Remotely . | . . Salvage Created 66 | . 66 Parts 9 | . 9 Haulers Intercepted . | . . Recyclers Shooed . | . . Parts Field Recycled . | . . Retrieved Matter . | . . Parts Self-Destructed . | . . Prevented . | . . Parts Restored . | . . Kills | -11 -10 ------- Run | Yrd Mat Combat Hostiles Destroyed 3 | . 3 Guns 3 | . 3 Classes Destroyed 3 | . 3 Operator 1 | . 1 Swarmer 2 | . 2 Grunt 1 | . 1 Best Kill Streak 2 | . 2 Combat Bots Only 2 | . 2 Max Kills in Single Turn 1 | . 1 Gunslinging . | . . Exploded . | . . Melee . | . . Uniques/NPCs Destroyed . | . . Combat | -11 -10 -------- Run | Yrd Mat Hostile Shots Fired 53 | . 53 Missed 14 | . 14 Hits 39 | . 39 Projectile 39 | . 39 AOE 1 | . 1 Damage Taken 621 | . 621 Core 254 | . 254 Absorbed by Shields . | . . Core Remaining (%) 100 | 100 . Volleys Fired 20 | . 20 Largest 2 | . 2 Hottest 60 | . 60 Shots Fired 40 | . 40 Gun 40 | . 40 Cannon . | . . Launcher . | . . Special . | . . Kinetic 20 | . 20 Thermal 20 | . 20 Explosive . | . . Electromagnetic . | . . Robot Hit Streak 8 | . 8 Robot Miss Streak 2 | . 2 Penetration Max . | . . Secondary Targets . | . . Shots Hit Robots 17 | . 17 Core Hits 7 | . 7 Critical Kills . | . . Critical Parts Destroyed . | . . Critical Strikes . | . . Melee Attacks . | . . Impact . | . . Slashing . | . . Piercing . | . . Sneak Attacks . | . . Combat Hostiles . | . . Follow-up Attacks . | . . Damage Inflicted 160 | . 160 Guns 152 | . 152 Cannons . | . . Explosions . | . . Melee . | . . Ramming 8 | . 8 Kinetic 75 | . 75 Thermal 77 | . 77 Explosive . | . . Electromagnetic . | . . Impact . | . . Slashing . | . . Piercing . | . . Highest Corruption . | . . Average Corruption . | . . Corruption Purged . | . . Corruption Blocked . | . . Overload Shots . | . . Overflow Damage . | . . Projectiles . | . . Explosions . | . . Melee . | . . Knockbacks . | . . Impact . | . . Kinetic . | . . Secondary . | . . Self-Inflicted Damage . | . . Shots . | . . Rammed . | . . Targets Rammed 4 | . 4 Kicked 4 | . 4 Crushed . | . . Highest Temperature 66 | . 66 Average Temperature 23 | . 23 Received Heat Transfer 192 | . 192 Siege Activations . | . . Martial Activations . | . . Shielding Activations . | . . Robots Disrupted . | . . Combat Hostiles . | . . Robots Corrupted . | . . Combat Hostiles . | . . Parts Fried . | . . Impact Corruptions . | . . Robots Melted . | . . Combat Hostiles . | . . Parts Melted . | . . Heat Transferred 175 | . 175 Parts Sabotaged . | . . Parts Stolen . | . . Parts Stripped . | . . Power Chain Reactions . | . . Alert | -11 -10 ------- Run | Yrd Mat Maximum Alert Level . | . . Low Security (%) 100 | 100 100 Level 1 . | . . Level 2 . | . . Level 3 . | . . Level 4 . | . . Level 5 . | . . High Security . | . . Max Security . | . . Peak Influence 50 | . 50 Initial . | . . Average 17 | . 17 Influence Increases 101 | . 101 Destroy 0b10 Robot/C 60 | . 60 Destroy 0b10 Robot/NC 5 | . 5 Destroy Leader 20 | . 20 Successful Hack 16 | . 16 Influence Decreases 81 | . 81 Time Decay 70 | . 70 Lost Part 11 | . 11 Squads Dispatched 2 | . 2 Investigation 1 | . 1 Extermination . | . . Reinforcement 1 | . 1 Assault . | . . Garrison . | . . Intercept . | . . Searches Triggered . | . . Construction Impeded . | . . Haulers Reinforced . | . . Active Scanning Responses . | . . Cargo Convoy Interrupts . | . . Stealth | -11 -10 --------- Run | Yrd Mat Distress Signals 1 | . 1 Communications Jammed . | . . Distress Signals . | . . Times Spotted 12 | . 12 Peak Tracking Total 8 | . 8 Tactical Retreats . | . . Traps | -11 -10 ------- Run | Yrd Mat Traps Triggered 1 | . 1 Indirectly . | . . Trap Hack Attempts . | . . Triggered . | . . Disarmed . | . . Reprogrammed . | . . Reused . | . . Traps Extracted . | . . Installed . | . . Triggered . | . . Machines | -11 -10 ---------- Run | Yrd Mat Machines Disabled . | . . Max in Single Turn . | . . Machines Repaired . | . . Machines Dismantled . | . . Machines Sabotaged . | . . Overloaded Fab Kills . | . . Hacking | -11 -10 --------- Run | Yrd Mat Machines Accessed 1 | . 1 Terminals 1 | . 1 Fabricators . | . . Repair Stations . | . . Recycling Units . | . . Scanalyzers . | . . Garrison Access . | . . Total Hacks 2 | . 2 Successful 1 | . 1 Failed 1 | . 1 Catastrophic 1 | . 1 Database Lockouts . | . . Manual . | . . Terminals 2 | . 2 Fabricators . | . . Repair Stations . | . . Recycling Units . | . . Scanalyzers . | . . Garrison Access . | . . Terminal Hacks 1 | . 1 Registered Components 1 | . 1 Fabricator Hacks . | . . Repair Station Hacks . | . . Recycling Unit Hacks . | . . Scanalyzer . | . . Garrison Access Hacks . | . . Unauthorized Hacks . | . . Terminals . | . . Fabricators . | . . Repair Stations . | . . Recycling Units . | . . Scanalyzers . | . . Garrison Access . | . . Data Cores Recovered . | . . Used . | . . Hacking Detections 1 | . 1 Full Trace Events . | . . Feedback Events . | . . Feedback Blocked . | . . Robot Schematics Acquired . | . . Robots Built . | . . Authchips . | . . Time . | . . Total Robot Build Rating . | . . Part Schematics Acquired . | . . Parts Built . | . . Authchips . | . . Time . | . . Total Part Build Rating . | . . Part Studies Acquired . | . . Parts Repaired . | . . Time . | . . Parts Recycled . | . . Recycled Matter . | . . Retrieved Matter . | . . Retrieved Components . | . . Parts Scanalyzed . | . . Part Schematics Acquired . | . . Parts Damaged . | . . Bothacking | -11 -10 ------------ Run | Yrd Mat Used RIF Installer . | . . Robots Hacked . | . . Non-combat . | . . Combat . | . . Robot Hacks Applied . | . . Relay Couplers Released . | . . Fabnet Peak Effective % . | . . Robots Rewired . | . . Allies Hacked . | . . Hacks Repelled . | . . Allies | -11 -10 -------- Run | Yrd Mat Total Allies . | . . Largest Group . | . . Highest-Rated Group . | . . Highest-Rated Ally . | . . Total Orders . | . . Ally Attacks . | . . Total Damage . | . . Kills . | . . Allies Corrupted . | . . Allies Melted . | . . Intel | -11 -10 ------- Run | Yrd Mat Active Infowar (turns) . | . . Robot Analysis Total . | . . Derelict Logs Recovered . | . . Drone Launches . | . . Drone Recoveries . | . . Exploration | -11 -10 ------------- Run | Yrd Mat Turns Passed 209 | 3 206 Spaces Moved 120 | 3 117 Core . | . . Treads . | . . Legs 120 | 3 117 Wheels . | . . Hover . | . . Flight . | . . Fastest Speed 120 | 120 120 Average Speed 120 | 120 120 Slowest Speed 120 | 120 120 Overloaded Moves . | . . Propulsion Burnouts . | . . Robots Hopped . | . . Potential Cave-ins . | . . Cave-ins Triggered . | . . Exploration Rate (%) 14 | 2 26 Regions Visited 1 Branch Regions . Pre-discovered Areas . | . . Known Exits Taken . | . . Unknown Exits Taken 1 | 1 . Scrap Searched . | . . Spaces Dug . | . . Terrain Destroyed . | . . Melee . | . . Projectile . | . . AOE . | . . Terrain Rammed . | . . Walls Destroyed . | . . Machines Disabled . | . . Actions | -11 -10 --------- Run | Yrd Mat Total 149 | 2 147 Wait 1 | . 1 Move 119 | 2 117 Hop . | . . Pick Up 2 | . 2 Fast Attach . | . . Attach 2 | . 2 Detach . | . . Swap 1 | . 1 Drop . | . . Fire 20 | . 20 Melee . | . . Ram . | . . Kick 4 | . 4 Crush . | . . Escape Stasis . | . . Rewire . | . . Trap . | . . Miscellaneous . | . . Route ------- -11/Scrapyard -10/Materials (discovered 1 exit: [*Min]) History --------- Turn | Location | Event 1 | -11/Scrapyard | Discovered new exit (range 3) 4 | -11/Scrapyard | Entered Materials 50 | -10/Materials | Discovered new exit (range 16) 194 | -10/Materials | Core integrity fell below 50% 194 | -10/Materials | Core integrity fell below 20% 210 | -10/Materials | Destroyed by G-34 Mercenary with Small Laser Last Messages --------------- 00173_ Kicked G-34 Mercenary out of the way. 00182_ Kicked G-34 Mercenary. 00183_ Kicked G-34 Mercenary out of the way. 00193_ Fusion Modulator explodes. 00193_ G-34 Mercenary destroyed. 00193_ S-10 Pest destroyed. 00193_ Fusion Modulator explodes. 00193_ S-10 Pest destroyed. 00193_ Terminal disabled. 00193_ G-34 Mercenary destroyed. 00193_ Aluminum Leg destroyed. 00193_ Ion Engine destroyed. 00193_ S-10 Pest destroyed. 00196_ K-01 Serf collects debris. 00198_ U-05 Engineer builds a Wall. 00201_ G-34 Mercenary destroyed. 00202_ K-01 Serf collects debris. 00203_ U-05 Engineer builds a Wall. 00209_ K-01 Serf collects debris. Map ----- +----------------------------------------------------+ | | | | | | | | | | | | | | | | | | | | | | | | | | | | | | | | | | | ??????????????????????????????????####???###?????? | | ????????????????????????????????? ??? ?????? | | ????????????????????###########? ???? ?????? | | ????????????????????# # ?????# ??????? | | ???????????????????## ; ???????# ??????? | | ???????????????????#; = ;#####+####+######?? | | ??????????????????##; %! ; #?? | | ??????????????????# ; g ;# #?? | | ??????????????????# ; @ ;# * #?? | | ??????????????????# ; ;# % #?? | | ??????????????????# ;= [ ;# = "T" #?? | | ??????????????????##;; ; """ #?? | | ??????????????????##;r #?? | | ????????????# k #?? | | ????????????????? ####;######## #######+#####?? | | ???????????????? ????##???????# ######?????????? | | ?????????????? ??????????????# # #?????????? | | ????????????? ????????????????# + #?????????? | | ??????????????????????????????# # #?????????? | | ??????????????????????????????# # #?????????? | | ??????????????????????????????# # #?????????? | | ??????????????????????????????# ######?????????? | | ??????????????????????????????# #??#######?????? | | ?????????????????????????!????# #??# ?????? | | ??????????????????????????????# #??# """ ?????? | | ???????????????????????######+# #### """""?????? | | ????]??????????????????# # """"" ????? | | ???????????????????????# % + """"" ????? | | ???????????????????? / # """ ???? | | ???????????????????##### ##+###### # ???? | | ???????????????????????# # %[ # # #?? | | ???????????????????????# # # ###########?? | | ???????????????????????# + # #???????????? | +----------------------------------------------------+ Best States ------------- Heat Dissipation 25 Energy Generation 10 Energy Capacity 250 Matter Stores 300 Matter Capacity 300 Sight Range 16 Terrain Scan Density 10 Evasion (%) 55 Recoil Reduction 2 Item Schematics ----------------- None Robot Schematics ------------------ None Fabricated ------------ Nothing Repaired ---------- Nothing Studied --------- None Alien Tech Used ----------------- None Achievements -------------- None Challenges ------------ None Game ------ Seed HeavyPhaseCore Manual? 0 Play Time 00:03:49 Cumulative 403.1 hours Start 2025.11.20 @ 18:44:41 End 2025.11.20 @ 18:47:11 Sessions 1 Manual Loads 0 Difficulty Rogue Special Mode None Game No. 131 Rogue 131 Adventurer 0 Explorer 0 Win Type - Total 11 Types 3/0/5/0/1/0/1/0/0/1 Lore% 79 Gallery% 86 Achievement% 72 Wizard Run 0 Options --------- Layout 1 ASCII 0 Keyboard 1 Movement Arrows Keybinds 0 Fullscreen 1 Font 24/Smallcaps Map View 50x35 Zoom Use 0% Tactical HUD 1 Map Filters NONE Filters NONE Steam 1 RUN: ef8f7278-bea3-4264-a4f4-22807313e7a5